Cogmind - Beta 16 @@@ ROGUE MODE // 2025.11.16 @ 01:55:04 Player: jes Result: Destroyed by H-55 Commando with Gauss Rifle Performance ------------- Evolutions (3) 1500 Regions Visited (7) 1400 Robots Destroyed (177) 885 Value Destroyed (5756) 5756 Prototype IDs (8) 160 Alien Tech Used (0) 0 Bonus (1203) 1203 TOTAL SCORE: 10904 Bonus ------- High Alert Combat Kills 503 Entered Garrisons 200 Used RIF Installer 500 Cogmind --------- Core Integrity 0/700 Matter 189/300 Energy 51/100 System Corruption 29% Temperature Cool (0) Movement Core (50) Location -7/Factory Parts ------- > --- POWER (2) -------- (None) > --- PROPULSION (4) --- (None) > --- UTILITY (5) ------ (None) > --- WEAPON (2) ------- Maul > --- INVENTORY (5) ---- Improved Deuterium Engine Structural Scanner Pulse Rifle Peak State ------------ > --- POWER ------------ Light Nuclear Core Improved Deuterium Engine > --- PROPULSION ------- Light Treads Medium Treads Aluminum Leg Carbon-fiber Leg > --- UTILITY ---------- Advanced Heat Sink Large Storage Unit Core Analyzer Armor Integrity Analyzer Hacking Suite > --- WEAPON ----------- Advanced Beam Rifle Gauss Rifle > --- INVENTORY -------- Light Nuclear Core Light Nuclear Core Light Nuclear Core High-capacity Matter Pod Structural Scanner ECM Suite High-powered Tractor Beam Pulse Rifle High-powered Shotgun Gauss Rifle Gauss Rifle Datajack Remote Datajack Maul [Rating: 44] Favorites ----------- Power Heavy Ion Engine Engine Heavy Ion Engine Power Core Light Nuclear Core Propulsion Light Treads Treads Light Treads Leg Aluminum Leg Utility Large Storage Unit Device Improved Heat Sink Storage Large Storage Unit Processor Transport Network Coupler Hackware Hacking Suite Protection Improved Propulsion Shielding Weapon Advanced Beam Rifle Energy Gun Advanced Beam Rifle Ballistic Gun Shotgun Ballistic Cannon Flak Cannon Impact Weapon Maul Special Melee Weapon Datajack Build | -11 -10 -10 -9 -8 -8 -8 -7 ------- Run | Yrd Mat Min Mat Mat Gar Mat Fac Slots Evolved 6 | . . . 2 2 . . 2 Power 1 | . . . . . . . 1 Propulsion 2 | . . . . 2 . . . Utility 3 | . . . 2 . . . 1 Weapon . | . . . . . . . . Parts Attached 135 | 6 7 2 43 10 7 34 26 Power 26 | 1 1 . 8 . 3 6 7 Engine 18 | 1 1 . 8 . 2 5 1 Core 8 | . . . . . 1 1 6 Reactor . | . . . . . . . . Propulsion 43 | 2 3 . 11 6 2 13 6 Treads 37 | . 2 . 11 6 2 13 3 Leg 6 | 2 1 . . . . . 3 Wheel . | . . . . . . . . Hover . | . . . . . . . . Flight . | . . . . . . . . Utility 37 | 1 3 . 15 1 2 8 7 Device 16 | . 1 . 6 . 2 5 2 Storage 7 | 1 1 . 2 1 . 2 . Processor 11 | . 1 . 6 . . 1 3 Hackware 1 | . . . . . . . 1 Protection 2 | . . . 1 . . . 1 Artifact . | . . . . . . . . Weapon 29 | 2 . 2 9 3 . 7 6 Energy Gun 9 | . . . 3 2 . 3 1 Energy Cannon . | . . . . . . . . Ballistic Gun 16 | 2 . 1 5 . . 3 5 Ballistic Cannon 1 | . . . . 1 . . . Launcher . | . . . . . . . . Special Weapon . | . . . . . . . . Impact Weapon 1 | . . . 1 . . . . Slashing Weapon . | . . . . . . . . Piercing Weapon . | . . . . . . . . Special Melee Weapon 2 | . . 1 . . . 1 . Unidentified Prototypes 8 | . . . 4 1 . 3 . Parts Lost 35 | . . 1 2 . 1 4 27 Power 7 | . . . . . . 1 6 Propulsion 10 | . . . . . . . 10 Utility 9 | . . . 1 . 1 1 6 Weapon 9 | . . 1 1 . . 2 5 Highest Loss Streak 13 | . . 1 1 . 1 2 13 To Critical Strikes . | . . . . . . . . Average Backups 13 | 2 7 9 12 14 14 14 13 Power 1 | . 1 2 1 2 2 1 . Propulsion 2 | 1 2 2 3 2 3 2 2 Utility 4 | . 2 4 4 5 4 5 4 Weapon 3 | . 1 . 3 5 5 4 4 Tool/Special . | . . . . . . . . Unused Backups 22 | . 4 . 6 1 1 4 6 Power 3 | . . . 2 . . . 1 Propulsion 3 | . 2 . 1 . . . . Utility 4 | . . . . . . 2 2 Weapon 11 | . 2 . 3 1 1 2 2 Tool/Special 1 | . . . . . . . 1 Average Slot Usage (%) 98 | . 97 100 99 99 99 99 91 Engine 8 | . 14 14 11 9 3 6 11 Core 1 | . . . . . 5 2 1 Treads 29 | . 11 28 22 35 36 36 25 Leg 1 | . 16 . . . . . 1 Device 10 | . . . 16 9 8 8 12 Storage 9 | . 14 14 11 9 9 9 6 Processor 15 | . 11 14 14 18 18 18 9 Energy Gun 7 | . . . 9 9 8 8 6 Ballistic Gun 9 | . 28 28 12 5 . 8 7 Ballistic Cannon 1 | . . . . 3 5 . . Peak Build Rating 44 | 6 11 11 21 24 24 28 44 Average Rating 22 | 4 8 10 17 22 21 25 34 On Entrance 14 | . 6 11 11 20 24 22 25 Avg Prop Armor Cover (%) 4 | . . . . . . . 4 Naked Turns 6 | . . . . . . . 6 Heaviest Build 49 | 12 19 19 45 38 37 37 49 Greatest Support 91 | 20 46 46 46 83 83 86 91 Greatest Overweight (x) 1 | 1 . . 1 . . . 1 Average Overweight (x) . | . . . . . . . . Largest Inventory Capacity 15 | 8 10 10 15 15 15 15 15 Average Capacity 14 | 7 8 10 13 15 15 15 14 Most Carried 15 | 4 9 10 15 15 15 15 15 Average Carried 13 | 2 7 9 12 14 14 14 13 Final Capacity 15 | 8 10 10 15 15 15 15 5 Final Carried 15 | 4 9 9 15 15 15 15 3 Class Distribution -------------------- 64% | Scavenger-Mutant 35% | Mutant Dominant Class ---------------- Mutant | -10/Materials Mutant | -10/Mines Mutant | -9/Materials Scavenger-Mutant | -8/Materials Scavenger-Mutant | -8/Garrison Scavenger-Mutant | -8/Materials Mutant | -7/Factory Resources | -11 -10 -10 -9 -8 -8 -8 -7 ----------- Run | Yrd Mat Min Mat Mat Gar Mat Fac Matter Collected 4105 | 185 285 340 842 165 500 1028 760 Remotely . | . . . . . . . . Salvage Created 6897 | . 210 271 1936 273 753 2364 1090 Parts 388 | . 18 19 122 17 36 108 68 Haulers Intercepted 13 | . 1 . 5 2 . 5 . Recyclers Shooed 2 | . . . . . . 2 . Parts Field Recycled . | . . . . . . . . Retrieved Matter . | . . . . . . . . Parts Self-Destructed . | . . . . . . . . Prevented . | . . . . . . . . Parts Restored . | . . . . . . . . Kills | -11 -10 -10 -9 -8 -8 -8 -7 ------- Run | Yrd Mat Min Mat Mat Gar Mat Fac Combat Hostiles Destroyed 135 | . 4 7 39 4 21 37 23 Guns 122 | . 4 7 39 3 10 37 22 Cannons 12 | . . . . 1 11 . . Classes Destroyed 15 | . 4 1 3 . 3 1 3 Worker 2 | . . 1 . . . 1 . Builder 4 | . . . . . . . 4 Hauler 13 | . 1 . 5 2 . 5 . Recycler 7 | . . . 3 . . 3 1 Operator 3 | . . . 2 . . . 1 Watcher 13 | . 3 . 5 . . 4 1 Swarmer 39 | . 3 3 15 . 9 . 9 Grunt 54 | . 1 4 16 2 2 25 4 Brawler 3 | . . . . . 1 1 1 Duelist 3 | . . . . . 1 1 1 Protector 2 | . . . . . . 2 . Sentry 23 | . . . 8 2 4 7 2 Specialist 1 | . . . . . . . 1 Hunter 8 | . . . . . 4 1 3 Programmer 2 | . . . . . . . 2 Best Kill Streak 10 | . 3 3 10 2 4 6 5 Combat Bots Only 6 | . 3 3 6 2 4 5 4 Max Kills in Single Turn 2 | . 1 2 2 1 2 2 2 Gunslinging 1 | . . 1 1 . . . . Exploded . | . . . . . . . . Melee . | . . . . . . . . Uniques/NPCs Destroyed . | . . . . . . . . Combat | -11 -10 -10 -9 -8 -8 -8 -7 -------- Run | Yrd Mat Min Mat Mat Gar Mat Fac Hostile Shots Fired 908 | . 24 30 191 13 83 169 398 Missed 278 | . 5 4 44 4 23 51 147 Hits 630 | . 19 26 147 9 60 118 251 Melee 29 | . . . . . 1 8 20 Projectile 601 | . 19 26 147 9 59 110 231 Critical Strikes 18 | . . 1 1 . 1 6 9 Damage Taken 8912 | . 156 346 1717 140 843 2036 3674 Core 1384 | . 20 60 304 . 99 187 714 Absorbed by Shields . | . . . . . . . . Redirected to Shielding 76 | . . . . . . . 76 Ignored by Resistances 191 | . . . 50 . . . 141 Core Remaining (%) 60 | 100 . 68 24 . . 48 . Volleys Fired 497 | . 24 20 127 23 44 154 105 Largest 2 | . 2 2 2 2 2 2 2 Hottest 108 | . 40 40 108 100 98 98 89 Shots Fired 973 | . 48 40 249 45 88 300 203 Gun 914 | . 48 40 249 39 44 291 203 Cannon 59 | . . . . 6 44 9 . Launcher . | . . . . . . . . Special . | . . . . . . . . Kinetic 553 | . 48 40 134 23 44 146 118 Thermal 415 | . . . 110 22 44 154 85 Explosive . | . . . . . . . . Electromagnetic 5 | . . . 5 . . . . Robot Hit Streak 38 | . 4 9 18 11 22 38 10 Robot Miss Streak 5 | . 5 1 5 3 3 2 4 Penetration Max 1 | . . . . . . . 1 Secondary Targets 16 | . . 3 3 . . 4 6 Max Gunslinging Chain 1 | . . 1 1 . . 1 1 Shots Hit Robots 719 | . 26 34 165 34 80 250 130 Core Hits 367 | . 10 15 78 16 62 110 76 Critical Kills . | . . . . . . . . Critical Parts Destroyed 7 | . 1 . 1 . 4 . 1 Critical Strikes 30 | . 1 . 5 3 7 8 6 Burn 23 | . . . 4 3 3 8 5 Destroy 3 | . 1 . 1 . . . 1 Smash 4 | . . . . . 4 . . Melee Attacks 71 | . . 2 2 . 61 4 2 Impact 67 | . . . 2 . 61 2 2 Slashing . | . . . . . . . . Piercing . | . . . . . . . . Sneak Attacks 4 | . . 2 . . . 2 . Combat Hostiles . | . . . . . . . . Follow-up Attacks . | . . . . . . . . Damage Inflicted 13090 | . 355 384 2513 582 1968 4564 2724 Guns 11485 | . 355 384 2513 470 664 4406 2693 Cannons 977 | . . . . 112 707 158 . Explosions 31 | . . . . . . . 31 Melee 597 | . . . . . 597 . . Ramming . | . . . . . . . . Kinetic 6426 | . 355 384 1068 324 707 2085 1503 Thermal 5969 | . . . 1378 258 664 2479 1190 Explosive 31 | . . . . . . . 31 Electromagnetic 67 | . . . 67 . . . . Impact 597 | . . . . . 597 . . Slashing . | . . . . . . . . Piercing . | . . . . . . . . Highest Corruption 29 | . . . . . . . 29 Average Corruption 9 | . . . . . . . 9 Corruption Purged . | . . . . . . . . Corruption Blocked . | . . . . . . . . Effects 15 | . . . . . . . 15 Message Errors 2 | . . . . . . . 2 Matter Fused 3 | . . . . . . . 3 Heat Flow Errors 2 | . . . . . . . 2 Energy Discharges 1 | . . . . . . . 1 Data Loss (minor) 3 | . . . . . . . 3 Misdirections 1 | . . . . . . . 1 Weapon Failures 3 | . . . . . . . 3 Overload Shots . | . . . . . . . . Overflow Damage 383 | . . . . . 367 . 16 Projectiles . | . . . . . . . . Explosions 16 | . . . . . . . 16 Melee 367 | . . . . . 367 . . Knockbacks 16 | . . . . 1 10 5 . Impact . | . . . . . . . . Kinetic 16 | . . . . 1 10 5 . Secondary . | . . . . . . . . Self-Inflicted Damage 63 | . . . . . . . 63 Shots 1 | . . . . . . . 1 Rammed . | . . . . . . . . Targets Rammed . | . . . . . . . . Kicked . | . . . . . . . . Crushed . | . . . . . . . . Highest Temperature 228 | . . 24 199 . 88 195 228 Average Temperature 50 | . . 6 67 . 32 25 69 Received Heat Transfer 2187 | . 12 183 489 54 108 936 405 Siege Activations . | . . . . . . . . Martial Activations . | . . . . . . . . Shielding Activations . | . . . . . . . . Robots Disrupted . | . . . . . . . . Combat Hostiles . | . . . . . . . . Robots Corrupted 4 | . . . . . 4 . . Combat Hostiles 4 | . . . . . 4 . . Parts Fried 3 | . . . . . 3 . . Impact Corruptions 6 | . . . . . 6 . . Robots Melted 1 | . . . . . . . 1 Combat Hostiles 1 | . . . . . . . 1 Parts Melted 23 | . . . 9 2 . 9 3 Heat Transferred 13533 | . . . 3293 777 1607 5340 2516 Parts Sabotaged . | . . . . . . . . Parts Stolen . | . . . . . . . . Parts Stripped . | . . . . . . . . Power Chain Reactions . | . . . . . . . . Alert | -11 -10 -10 -9 -8 -8 -8 -7 ------- Run | Yrd Mat Min Mat Mat Gar Mat Fac Maximum Alert Level 3 | . . . 2 1 3 2 1 Low Security (%) 46 | 100 100 100 50 84 12 . 80 Level 1 21 | . . . 31 15 21 22 19 Level 2 29 | . . . 17 . 45 77 . Level 3 3 | . . . . . 20 . . Level 4 . | . . . . . . . . Level 5 . | . . . . . . . . High Security . | . . . . . . . . Max Security . | . . . . . . . . Peak Influence 899 | . 60 94 567 251 899 639 310 Initial 438 | . . . 13 237 . 438 224 Average 255 | . 11 53 205 50 491 460 97 Influence Increases 4410 | . 146 184 1267 192 909 1040 672 Destroy 0b10 Robot/C 2660 | . 80 140 780 80 420 700 460 Destroy 0b10 Robot/NC 245 | . 20 5 75 10 25 75 35 Destroy Leader 602 | . 28 30 200 34 20 178 112 Successful Hack 177 | . 18 9 42 53 . 37 18 Disable Machine 135 | . . . 45 . 60 . 30 Anti-Garrison Action 300 | . . . . . 300 . . Destroy Structure 81 | . . . 5 . 54 5 17 Partial Spotted 15 | . . . . . . 15 . Lose Combat Pursuer 195 | . . . 120 15 30 30 . Influence Decreases 4212 | . 146 150 738 755 10 1445 968 Entered New Map 1078 | . . . 21 326 . 461 270 Time Decay 2154 | . 146 140 547 248 . 644 429 Lost Part 349 | . . 10 20 . 10 40 269 Purge Threat 631 | . . . 150 181 . 300 . Squads Dispatched 20 | . 1 . 4 2 . 6 7 Investigation 8 | . . . 2 2 . 4 . Extermination 3 | . . . . . . . 3 Reinforcement 4 | . 1 . 2 . . . 1 Assault 2 | . . . . . . 2 . Garrison 3 | . . . . . . . 3 Intercept . | . . . . . . . . Searches Triggered . | . . . . . . . . Construction Impeded . | . . . . . . . . Haulers Reinforced . | . . . . . . . . Active Scanning Responses . | . . . . . . . . Cargo Convoy Interrupts 1 | . . . . . . . 1 Stealth | -11 -10 -10 -9 -8 -8 -8 -7 --------- Run | Yrd Mat Min Mat Mat Gar Mat Fac Distress Signals 19 | . 1 . 8 4 . 5 1 Communications Jammed . | . . . . . . . . Distress Signals . | . . . . . . . . Times Spotted 205 | . 13 7 56 6 22 51 50 Peak Tracking Total 10 | . 3 3 7 3 6 6 10 Tactical Retreats 16 | . . . 5 1 1 3 6 ECM-based Alert Blocks 22 | . . . . . . 3 19 Traps | -11 -10 -10 -9 -8 -8 -8 -7 ------- Run | Yrd Mat Min Mat Mat Gar Mat Fac Traps Triggered 6 | . . . . . 3 3 . Indirectly . | . . . . . . . . Trap Hack Attempts . | . . . . . . . . Triggered . | . . . . . . . . Disarmed . | . . . . . . . . Reprogrammed . | . . . . . . . . Reused . | . . . . . . . . Traps Extracted . | . . . . . . . . Installed . | . . . . . . . . Triggered . | . . . . . . . . Machines | -11 -10 -10 -9 -8 -8 -8 -7 ---------- Run | Yrd Mat Min Mat Mat Gar Mat Fac Machines Disabled 11 | . . . 3 . 6 . 2 Max in Single Turn 1 | . . . 1 . 1 . 1 Garrison Access 1 | . . . . . . 1 . Garrison Relay 2 | . . . . . 2 . . Machines Repaired . | . . . . . . . . Machines Dismantled . | . . . . . . . . Machines Sabotaged . | . . . . . . . . Overloaded Fab Kills . | . . . . . . . . Hacking | -11 -10 -10 -9 -8 -8 -8 -7 --------- Run | Yrd Mat Min Mat Mat Gar Mat Fac Machines Accessed 50 | . 7 1 11 11 3 11 6 Terminals 35 | . 5 1 7 8 3 9 2 Fabricators 2 | . . . . . . . 2 Repair Stations 2 | . 1 . . . . . 1 Recycling Units 4 | . 1 . 2 1 . . . Scanalyzers 6 | . . . 2 1 . 2 1 Garrison Access 1 | . . . . 1 . . . Total Hacks 141 | . 15 7 33 29 10 38 9 Successful 47 | . 6 2 15 11 . 11 2 Failed 92 | . 9 5 17 18 10 26 7 Catastrophic 22 | . 1 1 4 6 1 8 1 Database Lockouts 2 | . . . 1 . . 1 . Manual 72 | . 11 7 14 14 2 24 . Terminals 105 | . 12 7 18 23 10 32 3 Fabricators 3 | . . . . . . . 3 Repair Stations 3 | . 2 . . . . . 1 Recycling Units 8 | . 1 . 6 1 . . . Scanalyzers 21 | . . . 9 4 . 6 2 Garrison Access 1 | . . . . 1 . . . Terminal Hacks 27 | . 4 2 6 7 . 6 2 Part Schematic 4 | . 1 . . 2 . . 1 Robot Analysis 1 | . . . 1 . . . . Open DSF 1 | . . . . . . . 1 Level Access Points 3 | . . 1 . 1 . 1 . Branch Access Points 1 | . . . 1 . . . . Emergency Access Points 1 | . . . . . . 1 . Terminal Index 4 | . 1 . 1 1 . 1 . Scanalyzer Index 3 | . 1 . 1 . . 1 . Unreport Threat 6 | . 1 . 1 2 . 2 . Locate Traps 1 | . . . . 1 . . . Hauler Manifests 1 | . . . 1 . . . . Zone Layout 1 | . . 1 . . . . . Fabricator Hacks . | . . . . . . . . Repair Station Hacks . | . . . . . . . . Recycling Unit Hacks . | . . . . . . . . Scanalyzer 14 | . . . 7 2 . 5 . Insert Component 3 | . . . 2 . . 1 . Analyze 3 | . . . 2 . . 1 . Retrieve Study 8 | . . . 3 2 . 3 . Garrison Access Hacks 1 | . . . . 1 . . . Unlock Access 1 | . . . . 1 . . . Unauthorized Hacks 5 | . 2 . 2 1 . . . Terminals 1 | . 1 . . . . . . Assimilate 1 | . 1 . . . . . . Fabricators . | . . . . . . . . Repair Stations . | . . . . . . . . Recycling Units 4 | . 1 . 2 1 . . . Reject 2 | . . . 1 1 . . . Recyclers 2 | . 1 . 1 . . . . Scanalyzers . | . . . . . . . . Garrison Access . | . . . . . . . . Data Cores Recovered 1 | . . . 1 . . . . Used . | . . . . . . . . Hacking Detections 45 | . 6 1 10 10 3 10 5 Full Trace Events 10 | . . . 2 2 2 4 . Feedback Events . | . . . . . . . . Feedback Blocked . | . . . . . . . . Robot Schematics Acquired . | . . . . . . . . Robots Built . | . . . . . . . . Authchips . | . . . . . . . . Time . | . . . . . . . . Total Robot Build Rating . | . . . . . . . . Part Schematics Acquired 7 | . 1 . 2 2 . 1 1 Parts Built . | . . . . . . . . Authchips . | . . . . . . . . Time . | . . . . . . . . Total Part Build Rating . | . . . . . . . . Part Studies Acquired 8 | . . . 3 2 . 3 . Parts Repaired . | . . . . . . . . Time . | . . . . . . . . Parts Recycled . | . . . . . . . . Recycled Matter . | . . . . . . . . Retrieved Matter . | . . . . . . . . Retrieved Components . | . . . . . . . . Parts Scanalyzed 3 | . . . 2 . . 1 . Part Schematics Acquired 3 | . . . 2 . . 1 . Parts Damaged 1 | . . . . . . 1 . Bothacking | -11 -10 -10 -9 -8 -8 -8 -7 ------------ Run | Yrd Mat Min Mat Mat Gar Mat Fac Used RIF Installer 1 | . . . . . 1 . . Robots Hacked 3 | . . 2 . . . 1 . Non-combat 3 | . . 2 . . . 1 . Combat . | . . . . . . . . Robot Hacks Applied 3 | . . 2 . . . 1 . no_distress 3 | . . 2 . . . 1 . Relay Couplers Released 10 | . . . . . 8 2 . Machine Destruction 10 | . . . . . 8 2 . Fabnet Peak Effective % . | . . . . . . . . Robots Rewired . | . . . . . . . . Allies Hacked . | . . . . . . . . Hacks Repelled . | . . . . . . . . Allies | -11 -10 -10 -9 -8 -8 -8 -7 -------- Run | Yrd Mat Min Mat Mat Gar Mat Fac Total Allies 1 | . 1 . . . . . . Largest Group 1 | . 1 . . . . . . Highest-Rated Group 10 | . 10 . . . . . . Highest-Rated Ally 10 | . 10 . . . . . . Total Orders . | . . . . . . . . Ally Attacks . | . . . . . . . . Total Damage . | . . . . . . . . Kills . | . . . . . . . . Allies Corrupted . | . . . . . . . . Allies Melted . | . . . . . . . . Intel | -11 -10 -10 -9 -8 -8 -8 -7 ------- Run | Yrd Mat Min Mat Mat Gar Mat Fac Active Infowar (turns) 9167 | . 565 289 1896 1049 1512 2331 1525 Optics 1236 | . 539 289 408 . . . . Sensors 710 | . . . 710 . . . . Structural 220 | . . . . . . . 220 T.N.C. 6157 | . . . 783 1049 1512 2331 482 ECM 2433 | . 26 . 95 157 . 630 1525 Robot Analysis Total 1 | . . . 1 . . . . Derelict Logs Recovered . | . . . . . . . . Drone Launches . | . . . . . . . . Drone Recoveries . | . . . . . . . . Exploration | -11 -10 -10 -9 -8 -8 -8 -7 ------------- Run | Yrd Mat Min Mat Mat Gar Mat Fac Turns Passed 10019 | 60 635 289 2384 1049 1512 2331 1759 Spaces Moved 4646 | 43 378 136 1089 477 621 1004 898 Core 143 | 8 . . . . . . 135 Treads 4235 | . 149 136 1089 477 621 1004 759 Legs 268 | 35 229 . . . . . 4 Wheels . | . . . . . . . . Hover . | . . . . . . . . Flight . | . . . . . . . . Fastest Speed 50 | 50 120 160 160 160 160 160 50 Average Speed 154 | 110 135 160 161 160 160 160 143 Slowest Speed 240 | 120 160 160 240 160 160 160 190 Overloaded Moves . | . . . . . . . . Propulsion Burnouts . | . . . . . . . . Robots Hopped . | . . . . . . . . Potential Cave-ins . | . . . . . . . . Cave-ins Triggered . | . . . . . . . . Exploration Rate (%) 46 | 3 60 25 67 65 63 65 21 Regions Visited 7 Branch Regions 1 Pre-discovered Areas . | . . . . . . . . Known Exits Taken 3 | . . 1 . 1 . 1 . Unknown Exits Taken 3 | 1 1 . 1 . . . . Scrap Searched . | . . . . . . . . Spaces Dug 35 | . . . 2 . 29 2 2 Terrain Destroyed 49 | . . . 2 . 29 2 16 Melee 35 | . . . 2 . 29 2 2 Projectile . | . . . . . . . . AOE 14 | . . . . . . . 14 Terrain Rammed . | . . . . . . . . Walls Destroyed . | . . . . . . . . Machines Disabled . | . . . . . . . . Actions | -11 -10 -10 -9 -8 -8 -8 -7 --------- Run | Yrd Mat Min Mat Mat Gar Mat Fac Total 6411 | 52 455 166 1479 717 927 1460 1155 Wait 822 | . 27 1 141 198 174 201 80 Move 4639 | 42 377 135 1088 477 619 1003 898 Hop . | . . . . . . . . Pick Up 57 | 4 9 2 19 1 1 12 9 Fast Attach 63 | 6 3 . 20 1 4 16 13 Attach 37 | . . 1 7 2 1 6 20 Detach 30 | . 2 . 15 . 1 4 8 Swap 94 | . 4 4 24 9 15 27 11 Drop 101 | . 9 1 36 6 7 33 9 Fire 497 | . 24 20 127 23 44 154 105 Melee 71 | . . 2 2 . 61 4 2 Ram . | . . . . . . . . Kick . | . . . . . . . . Crush . | . . . . . . . . Escape Stasis . | . . . . . . . . Rewire . | . . . . . . . . Trap . | . . . . . . . . Miscellaneous . | . . . . . . . . Route ------- -11/Scrapyard -10/Materials (discovered 2 exits: *Mat / *Min) -10/Mines (discovered 2 exits: *Mat x2) -9/Materials (discovered 2 exits: *Mat / *Min) -8/Materials (discovered 4 exits: Fac x3 / Gar) -8/Garrison (discovered 2 exits: *Mat x2) -8/Materials (discovered 3 exits: *Fac x3) -7/Factory History --------- Turn | Location | Event 19 | -11/Scrapyard | Discovered new exit (range 15) 61 | -11/Scrapyard | Entered Materials 210 | -10/Materials | Discovered new exit (range 8) 311 | -10/Materials | Build established: Mutant 551 | -10/Materials | Discovered new exit (range 6) 561 | -10/Materials | Derelicts attacked the area 696 | -10/Materials | Entered Mines 696 | -10/Mines | Accompanied by 1 ally 725 | -10/Mines | Identified exit to Materials 985 | -10/Mines | Entered Materials 985 | -9/Materials | Evolved 2 slots: Utility x2 1090 | -9/Materials | Identified exit to Mines 2050 | -9/Materials | Discovered new exit (range 5) 2214 | -9/Materials | Core integrity fell below 50% 2964 | -9/Materials | Central database locked down 3369 | -9/Materials | Entered another Materials area 3369 | -8/Materials | Evolved 2 slots: Propulsion x2 3384 | -8/Materials | Identified exit to Factory 3448 | -8/Materials | Build established: Scavenger-Mutant 3856 | -8/Materials | Met 7R-MNS 4418 | -8/Materials | Identified exit to Garrison 4418 | -8/Materials | Entered Garrison 4700 | -8/Garrison | Triggered checkpoint 4857 | -8/Garrison | Discovered new exit (range 14) 4876 | -8/Garrison | Garrison Relay disabled 5186 | -8/Garrison | Triggered checkpoint 5226 | -8/Garrison | Garrison Relay disabled 5364 | -8/Garrison | Installed Relay Interface Framework 5566 | -8/Garrison | Triggered checkpoint 5748 | -8/Garrison | Triggered checkpoint 5841 | -8/Garrison | Discovered new exit (range 10) 5930 | -8/Garrison | Entered Materials 6014 | -8/Materials | Central database locked down 8006 | -8/Materials | Core integrity fell below 50% 8261 | -8/Materials | Entered Factory 8261 | -7/Factory | Evolved 2 slots: Power x1, Utility x1 8643 | -7/Factory | Build established: Mutant 9422 | -7/Factory | Build established: Scavenger-Mutant 9474 | -7/Factory | Cargo convoy interrupted 9553 | -7/Factory | Lost 4 parts (1p2n1w) 9612 | -7/Factory | Lost 6 parts (1p3n1u1w) 9726 | -7/Factory | Garrison activated, responded to threat 9831 | -7/Factory | Core integrity fell below 50% 9879 | -7/Factory | System corruption reached 10% 9913 | -7/Factory | Core integrity fell below 20% 9940 | -7/Factory | Released all parts (3) 9968 | -7/Factory | Lost 13 parts (4p3n4u2w) 10020 | -7/Factory | Destroyed by H-55 Commando with Gauss Rifle Last Messages --------------- 09928_ Slug penetrates U-05 Engineer. 09930_ H-61 Shepherd destroyed. 09931_ Slug penetrates Subcomponent Replicator. 09931_ Slug penetrates U-05 Engineer. 09931_ U-05 Engineer destroyed. 09934_ Slug penetrates Subcomponent Replicator. 09937_ Lgt. Nuclear Core destroyed. 09937_ System corrupted: Gauss Rifle jammed. 09937_ Slug penetrates Wall. 09940_ Released Lrg. Storage Unit. 09940_ Released Gauss Rifle. 09940_ Acquired 9 matter. 09942_ G-47 Trooper suffers critical hit (Burn). 09944_ Acquired 31 matter. 09947_ Acquired 28 matter. 09948_ System corrupted: Matter fused (-8). 09989_ K-01 Serf cleans the TF Node. 09997_ System corrupted: Component data lost. 10010_ ECM Suite destroyed. 10014_ AKN:1AOM QCAEKKD X